bitfinex/quotes_ETHUSD_20250329
["timestamp","ask_amount","ask_price","bid_price","bid_amount"]
[1743269173130,5.52944,1808.5,1808.4,1.6136]
[1743269173417,5.52961,1808.5,1808.1,13.77171187]
[1743269173718,12.48483548,1808.8,1808.4,5.52963]
[1743269174019,11.05798,1808.7,1808.3,5.52994]
[1743269174226,5.52914,1808.6,1808.3,5.52994]
[1743269174718,11.55534879,1808.7,1808.3,6.12073031]
[1743269175089,5.52915,1808.6,1808.2,5.53019]
[1743269175296,6.02648879,1808.6,1808.2,5.53015]
[1743269175479,0.49733879,1808.6,1808.3,5.52987]
[1743269175680,0.49733879,1808.6,1808.5,5.52944]
[1743269176214,0.49733879,1808.6,1808.4,5.52962]
[1743269176395,5.52916,1808.6,1808.2,6.63630615]
[1743269176601,5.52916,1808.6,1808.2,12.16646615]
[1743269176786,5.52888,1808.7,1808.3,5.52982]
[1743269176990,9.70747427,1808.8,1808.5,5.52931]
[1743269177201,0.49733879,1808.6,1808.5,5.52931]
[1743269178499,0.66231711,1808.6,1808.5,5.52931]
[1743269178698,0.66231711,1808.6,1808.5,7.14291]
[1743269178895,0.16497832,1808.6,1808.5,7.14291]
[1743269179123,0.16497832,1808.6,1808.5,8.4654612]
[1743269179328,0.49733879,1808.8,1808.6,11.05802]
[1743269179620,0.49733879,1808.8,1808.7,5.52883]
[1743269179917,3.0,1809.0,1808.7,11.05749]
[1743269180425,9.20925548,1809.1,1808.7,11.05749]
[1743269180598,14.73702548,1809.1,1808.7,6.634409]
[1743269180986,14.73702548,1809.1,1808.7,12.163119]
[1743269181187,9.20925548,1809.1,1808.8,5.5285]
[1743269181522,0.49878606,1809.0,1808.8,5.52841]
[1743269181817,0.49878606,1809.0,1808.9,5.52822]
[1743269182122,0.49878606,1809.0,1808.9,8.181179]
[1743269183441,0.49878606,1809.0,1808.9,8.6045339]
[1743269183645,9.20625548,1810.1,1809.6,1.5473]
[1743269183786,0.2746,1810.6,1809.6,8.4223]
[1743269183986,1.49584603,1810.4,1810.3,5.52394]
[1743269184219,1.49584603,1810.4,1810.3,5.57917195]
[1743269184422,1.67691085,1811.2,1810.3,1.5473]
[1743269184624,1.67691085,1811.2,1811.1,5.5215]
[1743269184798,0.01530285,1811.2,1811.1,0.05520903]
[1743269184994,3.83552594,1811.2,1810.7,6.874]
[1743269185189,4.08045092,1811.2,1810.6,5.52286]
[1743269185488,0.13862761,1811.1,1811.0,5.52181]
[1743269185913,0.01530285,1811.2,1811.0,5.5216]
[1743269186104,0.13862761,1811.1,1810.8,11.04433]
[1743269186426,0.01530285,1811.2,1810.9,5.52211]
[1743269186623,0.01530285,1811.2,1811.0,6.073911]
[1743269186798,0.01530285,1811.2,1811.0,6.073801]
[1743269187005,0.01530285,1811.2,1811.1,5.5215]
[1743269187420,0.01530285,1811.2,1811.0,6.073801]
[1743269187615,5.51954,1811.8,1811.3,5.52066]
[1743269187928,3.68159548,1812.1,1811.6,5.51983]
[1743269188135,8.2469334,1813.4,1811.1,0.05520439]
[1743269188136,3.68159548,1812.3,1811.7,7.0669]
[1743269188424,5.5181,1812.3,1811.9,5.51901]
[1743269188588,5.5181,1812.3,1811.8,5.51915]
[1743269188803,5.51819,1812.2,1811.8,5.51915]
[1743269188998,5.5181,1812.3,1811.8,6.777762]
[1743269189231,6.65803023,1813.2,1811.9,5.51879]
[1743269189232,3.95619548,1812.7,1811.9,5.51879]
[1743269189399,5.51693,1812.6,1811.8,1.258612]
[1743269189605,5.51642,1812.8,1812.3,5.51771]
[1743269189814,3.0,1812.5,1811.9,6.87]
[1743269190002,5.5174,1812.5,1812.0,5.51862]
[1743269190201,3.68159548,1812.9,1811.9,6.87]
[1743269190513,5.51696,1812.6,1812.1,5.51842]
[1743269190713,3.95619548,1813.1,1812.1,1.103697]
[1743269190916,5.79019,1813.1,1812.7,5.51645]
[1743269191122,5.51578,1813.0,1812.6,5.51689]
[1743269191329,5.51658,1812.8,1812.3,7.06514]
[1743269191518,5.51695,1812.6,1812.2,5.51813]
[1743269191840,6.620325,1812.6,1812.2,5.5181]
[1743269192041,6.620315,1812.6,1812.0,6.867]
[1743269192508,0.10852059,1812.5,1812.3,5.51773]
[1743269192838,0.10852059,1812.5,1812.0,6.867]
[1743269192839,0.10852059,1812.5,1812.1,11.03649]
[1743269193142,0.10852059,1812.5,1812.0,6.867]
[1743269193143,0.10852059,1812.5,1812.4,5.51754]
[1743269193306,3.0,1812.7,1812.4,5.51754]
[1743269193508,3.0,1812.7,1812.5,5.51717]
[1743269193730,0.10852059,1812.6,1812.4,5.51738]
[1743269193937,3.0,1812.7,1812.4,5.51731]
[1743269194251,0.10852059,1812.6,1812.3,1.5473]
[1743269194421,0.10852059,1812.6,1812.2,5.51796]
[1743269194617,0.3,1812.7,1812.3,5.51767]
[1743269194917,0.10852059,1812.6,1812.5,5.51721]
[1743269195101,3.2746,1813.1,1812.5,5.51721]
[1743269195102,5.51588,1813.0,1812.5,5.51721]
[1743269195306,0.12596786,1812.9,1812.7,5.51662]
[1743269196043,0.12596786,1812.9,1812.5,5.51718]
[1743269196257,0.12596786,1812.9,1812.1,0.55]
[1743269196415,8.79028,1813.1,1812.2,5.51815]
[1743269196623,0.1265437,1813.0,1812.7,5.5165]
[1743269196924,0.1265437,1813.0,1812.9,5.51602]
[1743269197130,5.51524,1813.2,1812.7,7.09009]
[1743269197354,0.1265437,1813.1,1812.8,5.51621]
[1743269197561,0.1265437,1813.1,1812.8,11.03236]
[1743269197719,0.1265437,1813.1,1812.9,5.51596]
[1743269197923,11.02985,1813.3,1812.9,5.51588]
[1743269197924,5.51483,1813.3,1812.9,5.51588]
[1743269198248,0.12703088,1813.2,1812.9,5.51576]
[1743269198449,0.12703088,1813.2,1813.0,5.51556]
[1743269198622,3.0,1813.3,1813.0,5.51553]
[1743269198952,0.12703088,1813.2,1813.0,5.51552]
[1743269199253,0.2746,1813.5,1812.9,5.51597]
[1743269199452,0.12703088,1813.1,1812.9,5.51585]
[1743269199651,5.51488,1813.3,1812.9,11.03174]
[1743269199975,5.51471,1813.4,1813.1,5.51538]
[1743269200133,0.12703088,1813.3,1813.1,5.51538]
[1743269200322,11.02861,1813.5,1813.1,5.51538]
[1743269200523,0.11644498,1813.4,1813.1,5.51538]
[1743269200831,5.63095498,1813.4,1813.1,5.51538]
[1743269201280,0.11644498,1813.4,1813.1,5.51538]
[1743269201587,5.63095498,1813.4,1813.1,5.51538]
[1743269201983,5.63095498,1813.4,1813.0,5.5156]
[1743269202192,0.8376955,1813.3,1812.9,5.51596]
[1743269202389,5.51497,1813.3,1812.9,5.516]
[1743269202686,0.11644498,1813.2,1813.1,5.51541]
[1743269203052,0.11644498,1813.2,1813.1,5.57056299]
[1743269203261,11.30261,1813.6,1813.2,5.51511]
[1743269203489,5.7885,1813.6,1813.2,5.51495]
[1743269203672,0.12060806,1813.5,1813.3,5.51468]
[1743269203863,0.12060806,1813.5,1813.2,5.5149]
[1743269204188,0.12060806,1813.5,1813.4,5.5145]
[1743269204485,1.18454393,1814.9,1813.5,5.51408]
[1743269204687,7.167738,1815.1,1814.0,7.08617]
[1743269204888,3.68159548,1814.8,1814.2,5.5119]
[1743269205075,3.68159548,1814.6,1814.1,5.51225]
[1743269205263,0.2746,1815.0,1814.2,5.51188]
[1743269205264,3.68159548,1814.7,1814.2,5.51188]
[1743269205464,5.51117,1814.5,1814.1,5.51235]
[1743269205787,5.51107,1814.6,1814.0,1.5735]
[1743269205953,0.01530285,1815.3,1814.5,5.51115]
[1743269206154,0.01530285,1815.3,1814.8,5.51005]
[1743269206373,0.01530285,1815.3,1814.7,1.5735]
[1743269206374,0.01530285,1815.3,1814.9,5.50982]
[1743269206581,0.01530285,1815.3,1814.7,1.5735]
[1743269206582,5.50967,1815.0,1814.7,1.5735]
[1743269206782,5.50967,1815.0,1814.2,3.0]
[1743269206783,3.0,1815.0,1814.4,12.36344]
[1743269206984,3.0,1815.0,1814.6,5.51072]
[1743269207169,0.01530285,1815.3,1814.8,5.50997]
[1743269207374,5.50949,1815.1,1814.7,5.51043]
[1743269207578,9.20575833,1815.3,1814.4,13.599744]
[1743269207778,0.01530285,1815.3,1814.9,1.5133]
[1743269207976,0.01530285,1815.3,1815.1,5.50917]
[1743269208181,0.01530285,1815.3,1815.0,11.01903]
[1743269208354,0.11018744,1815.2,1815.0,5.50964]
[1743269208558,0.11018744,1815.2,1815.1,5.50933]
[1743269208896,3.95619548,1815.9,1815.4,5.50838]
[1743269208897,5.50735,1815.8,1815.4,5.50838]
[1743269209191,5.61795744,1815.7,1815.3,5.50852]
[1743269209397,0.11018744,1815.7,1815.4,11.01663]
[1743269209561,0.11018744,1815.7,1815.4,5.50825]
[1743269209757,5.61773744,1815.7,1815.2,5.50891]
[1743269209959,0.11018744,1815.7,1815.4,5.5084]
[1743269210185,5.50784,1815.6,1815.2,5.50892]
[1743269210506,5.50784,1815.6,1815.2,11.01777]
[1743269210507,0.11018744,1815.5,1815.2,11.01777]
[1743269210799,0.11018744,1815.5,1815.4,5.50842]
[1743269211001,0.55,1816.9,1815.6,5.50782]
[1743269211299,0.55,1816.9,1815.5,1.5851]
[1743269211300,5.50656,1816.1,1815.5,1.5851]
[1743269211500,0.3847,1816.4,1815.5,1.5851]
[1743269211501,5.89011,1816.4,1815.5,1.5851]
[1743269211681,5.89011,1816.4,1815.6,5.50768]
[1743269211682,5.50672,1816.0,1815.6,5.50768]
[1743269211867,5.50679,1816.0,1815.3,6.846]
[1743269212071,0.3847,1816.4,1815.4,6.19297]
[1743269212295,0.3847,1816.4,1815.5,5.508]
[1743269212296,5.50695,1815.9,1815.5,5.508]
[1743269212598,5.5066,1816.0,1815.4,0.6846]
[1743269212797,5.5063,1816.1,1815.4,6.19301]
[1743269212957,0.3847,1816.4,1815.4,0.6846]
[1743269213301,5.50577,1816.3,1815.6,5.50779]
[1743269213592,5.50733,1815.8,1815.5,1.5851]
[1743269213756,1.139589,1816.3,1815.2,9.531877]
[1743269213757,8.50669,1816.0,1815.2,9.531877]
[1743269213961,5.50827,1815.5,1815.2,1.5851]
[1743269214192,5.50784,1815.6,1815.2,1.5851]
[1743269214193,1.139589,1816.3,1815.2,1.5851]
[1743269214394,5.506,1816.2,1815.8,5.50708]
[1743269214600,5.50652,1816.1,1815.7,1.5851]
[1743269215103,5.50782,1815.6,1815.2,7.09398]
[1743269215304,5.50737,1815.8,1815.3,5.50849]
[1743269215599,4.10143,1815.8,1815.2,1.5851]
[1743269215776,5.50794,1815.6,1815.2,7.09399]
[1743269215965,9.99346,1815.8,1815.3,5.50873]
[1743269216161,6.05632,1816.1,1815.6,5.50756]
[1743269216162,5.50662,1816.0,1815.6,5.50756]
[1743269216362,5.50671,1816.0,1815.6,5.50768]
[1743269216567,5.89108,1816.1,1815.7,5.50751]
[1743269216798,5.50679,1816.0,1815.4,5.50842]
[1743269216976,5.50692,1815.9,1815.5,5.50797]
[1743269217173,1.101371,1815.9,1814.9,1.5851]
[1743269217373,5.89293,1815.5,1815.1,5.50917]
[1743269217704,5.89293,1815.5,1815.1,5.50918]
[1743269217887,0.10338949,1815.4,1815.1,5.50919]
[1743269218081,0.10338949,1815.4,1815.1,11.01832]
[1743269218301,0.10338949,1815.4,1815.2,5.5088]
[1743269218674,5.50784,1815.6,1815.2,5.5088]
[1743269218880,0.11660937,1815.3,1815.2,5.5088]
[1743269219105,3.0,1815.6,1815.3,5.50853]
[1743269219605,3.0,1815.6,1815.4,5.50842]
[1743269219804,5.50765,1815.7,1815.3,5.50865]
[1743269220013,3.0,1815.8,1815.5,5.50782]
[1743269220206,3.0,1815.8,1815.6,5.5078]
[1743269220363,11.01341,1816.0,1815.6,5.5078]
[1743269220568,5.50661,1816.0,1815.6,5.50767]
[1743269220770,5.50661,1816.0,1815.6,11.01531]
[1743269220992,0.28713811,1816.6,1815.9,5.50691]
[1743269221193,0.9347,1817.0,1815.9,5.50691]
[1743269221194,5.50439,1816.8,1816.4,7.09032]
[1743269221400,5.50472,1816.7,1816.4,1.5851]
[1743269221597,0.55,1817.0,1816.4,1.5851]
[1743269221810,5.50562,1816.4,1816.1,1.5851]
[1743269222012,5.5052,1816.5,1815.8,1.5851]
[1743269222312,0.55,1817.0,1816.9,7.08898]
[1743269222605,0.55,1817.0,1816.4,5.50528]
[1743269222606,5.50429,1816.8,1816.4,5.50528]
[1743269222792,5.50502,1816.6,1816.2,1.5851]
[1743269223204,6.05381,1817.0,1816.2,7.09098]
[1743269223405,0.3847,1816.9,1815.8,1.5851]
[1743269223701,5.50547,1816.4,1816.0,5.5066]
[1743269223908,5.50449,1816.7,1816.3,5.50557]
[1743269224075,5.50484,1816.6,1816.2,5.50599]
[1743269224273,4.100933,1816.6,1816.0,6.839]
[1743269224606,8.5054,1816.4,1816.1,5.5063]
[1743269224813,14.01102,1816.4,1816.0,5.50653]
[1743269224976,5.5057,1816.3,1816.0,5.50653]
[1743269225176,8.5056,1816.4,1816.0,5.50652]
[1743269225372,3.0,1816.4,1816.0,5.50652]
[1743269225571,3.0,1816.4,1815.9,5.50678]
[1743269225572,5.5058,1816.3,1815.9,5.50678]
[1743269225809,3.0,1816.5,1815.9,0.709188]
[1743269225988,3.0,1816.6,1816.3,5.50554]
[1743269226186,0.55,1817.0,1816.4,1.5709]
[1743269226409,5.5042,1816.8,1816.4,5.50535]
[1743269226630,5.50388,1816.9,1816.5,5.50503]
[1743269226836,11.00806,1816.9,1816.5,5.50503]
[1743269227017,6.05368,1817.0,1816.2,5.506]
[1743269227336,0.55,1817.0,1816.5,5.5049]
[1743269227502,0.55,1817.0,1816.7,5.5043]
[1743269227503,3.55,1817.0,1816.7,5.5043]
[1743269227833,9.05359,1817.0,1816.6,7.07368]
[1743269228012,0.55,1817.0,1816.7,5.50447]
[1743269228200,0.55,1817.0,1816.8,5.50406]
[1743269228399,11.55756,1817.0,1816.6,7.07372]
[1743269228635,5.50393,1816.9,1816.4,12.34314]
[1743269228803,5.50393,1816.9,1816.5,5.50495]
[1743269229138,5.50432,1816.8,1816.4,5.50533]
[1743269229536,5.50432,1816.8,1816.4,5.50528]
[1743269229696,8.50391,1816.9,1816.3,1.569]
[1743269229897,8.50391,1816.9,1816.5,5.50509]
[1743269230095,0.55,1817.0,1816.3,8.465716]
[1743269230299,6.05375,1817.0,1816.6,5.50448]
[1743269230997,0.55,1817.0,1816.7,5.50425]
[1743269231203,11.55741,1817.0,1816.6,5.50472]
[1743269231410,0.55,1817.0,1816.3,2.960196]
[1743269231629,5.50538,1816.5,1816.1,5.50616]
[1743269231848,5.50528,1816.5,1816.1,5.50616]
[1743269232038,5.50528,1816.5,1816.1,5.5061]
[1743269232237,5.50643,1816.1,1815.7,7.0764]
[1743269232437,5.50643,1816.1,1815.4,6.6377756]
[1743269232438,5.50631,1816.1,1815.4,1.569]
[1743269232626,5.50709,1815.9,1815.5,5.50795]
[1743269232828,3.0,1816.1,1815.6,0.0550765]
[1743269233154,8.50631,1816.1,1815.8,5.50707]
[1743269233317,3.0,1816.1,1815.8,11.0141]
[1743269233525,5.50513,1816.5,1815.9,1.569]
[1743269233823,5.50494,1816.6,1816.2,5.50581]
[1743269234018,5.50521,1816.5,1816.1,5.50627]
[1743269234258,5.50551,1816.4,1816.0,5.50648]
[1743269234551,5.50551,1816.4,1816.0,5.56154005]
[1743269234717,3.0,1816.5,1816.2,5.50582]
[1743269234919,5.50556,1816.4,1816.0,6.213858]
[1743269235150,5.50556,1816.4,1815.9,7.07586]
[1743269235151,5.50585,1816.3,1815.9,7.07586]
[1743269235467,5.50583,1816.3,1815.9,7.07578]
[1743269235614,5.50543,1816.4,1816.0,5.50642]
[1743269235817,0.55,1816.4,1815.7,5.5075]
[1743269236017,5.50587,1816.3,1815.9,5.5069]
[1743269236251,11.01179,1816.3,1815.9,5.5069]
[1743269236470,1.101179,1816.3,1815.6,7.07669]
[1743269236757,5.50689,1816.0,1815.6,7.07669]
[1743269236961,5.50616,1816.2,1815.8,5.50701]
[1743269237156,5.50681,1816.0,1815.6,12.58438]
[1743269237453,5.50603,1816.2,1815.8,5.50702]
[1743269237620,5.50681,1816.0,1815.6,7.0767]
[1743269237821,5.89084,1816.2,1815.6,3.51108]
[1743269238020,0.3847,1816.2,1815.6,7.07672]
[1743269238222,5.50679,1816.0,1815.6,7.07665]
[1743269238758,5.5063,1816.1,1815.6,12.58445]
[1743269238966,5.50708,1815.9,1815.6,1.569]
[1743269239135,11.01287,1816.1,1815.7,5.50726]
[1743269239463,5.50692,1815.9,1815.6,7.07678]
[1743269239659,5.5056,1816.4,1815.9,5.50676]
[1743269239865,5.50586,1816.3,1815.9,5.50676]
[1743269240226,11.01171,1816.3,1815.9,5.50676]
[1743269240427,8.50545,1816.4,1815.8,5.50721]
[1743269240667,3.0,1816.4,1816.1,5.50607]
[1743269240826,5.88942,1816.7,1816.1,1.59516052]
[1743269241172,11.39409,1816.7,1816.3,5.5055]
[1743269241530,0.3847,1816.7,1816.1,7.04637]
[1743269241729,5.50428,1816.8,1816.4,5.50516]
[1743269242233,11.00865,1816.8,1816.4,5.56020835]
[1743269242457,5.50533,1816.5,1816.1,7.0461]
[1743269242659,5.50555,1816.4,1816.1,1.5401]
[1743269242858,5.50555,1816.4,1816.1,7.04636]
[1743269243270,5.50478,1816.7,1816.2,0.05505989]
[1743269243560,5.50473,1816.7,1816.3,5.50542]
[1743269243768,5.50473,1816.7,1816.4,5.50538]
[1743269243955,5.50391,1816.9,1816.5,5.50504]
[1743269244151,5.50438,1816.8,1816.4,5.50538]
[1743269244358,5.50464,1816.7,1816.3,5.50567]
[1743269244541,5.50464,1816.7,1816.2,5.50588]
[1743269244542,5.5049,1816.6,1816.2,5.50588]
[1743269244743,5.50464,1816.7,1816.3,5.5056]
[1743269244957,5.50464,1816.7,1816.3,11.01116]
[1743269245267,9.43828,1817.0,1816.1,8.3751]
[1743269245268,5.50486,1816.6,1816.2,5.50591]
[1743269245568,5.50452,1816.7,1816.3,5.50545]
[1743269245772,9.43832,1817.0,1816.6,5.5046]
[1743269245957,9.05362,1817.0,1816.6,7.0447]
[1743269246156,9.05362,1817.0,1816.7,5.50435]
[1743269246360,0.55,1817.0,1816.9,5.50388]
[1743269246973,0.55,1817.0,1816.9,7.04398]
[1743269247734,0.55,1817.0,1816.9,7.09901112]
[1743269247936,0.55,1817.0,1816.9,7.09900999]
[1743269248132,0.3847,1818.6,1817.0,2.250001]
[1743269248373,5.50036,1818.1,1817.8,1.5401]
[1743269248582,5.49997,1818.2,1817.8,5.50106]
[1743269248784,5.88498,1818.1,1817.6,5.50164]
[1743269249073,5.99210591,1818.1,1817.6,5.5015]
[1743269249282,0.10697591,1818.1,1818.0,7.04065]
[1743269249579,5.4992,1818.5,1818.1,5.5001]
[1743269249873,0.01530285,1818.8,1818.1,5.50024]
[1743269250073,0.01530285,1818.8,1818.6,5.49871]
[1743269250261,0.01530285,1818.8,1818.3,5.49935]
[1743269250434,0.01530285,1818.8,1818.5,5.49884]
[1743269250640,0.01530285,1818.8,1818.6,5.49849]
[1743269251137,0.01530285,1818.8,1818.7,13.92651116]
[1743269251377,10.99132,1819.7,1818.9,5.49772]
[1743269251708,5.49511,1819.8,1819.3,5.4965]
[1743269251916,7.39067788,1820.0,1819.5,5.49601]
[1743269252090,1.49588788,1820.0,1819.9,5.4948]
[1743269252633,5.49449,1820.1,1819.4,1.5401]
[1743269252800,5.4951,1819.9,1819.4,7.0364]
[1743269253158,5.49512,1819.8,1819.4,7.0364]
[1743269253461,5.4951,1819.9,1819.5,5.496]
[1743269253670,0.4,1820.3,1819.6,5.49543]
[1743269253896,5.49473,1820.0,1819.5,10.9917]
[1743269254062,5.49464,1820.0,1819.6,5.49553]
[1743269254273,5.49397,1820.2,1819.7,5.49515]
[1743269254599,5.49397,1820.2,1819.6,5.49553]
[1743269254600,5.49434,1820.1,1819.6,5.49553]
[1743269254897,5.49487,1819.9,1819.4,12.53241]
[1743269255083,5.49487,1819.9,1819.5,5.49597]
[1743269255285,6.043597,1820.1,1819.6,5.55064563]
[1743269255611,5.4942,1820.1,1819.7,5.49523]
[1743269256196,5.4942,1820.1,1819.6,5.49569]
[1743269256425,5.49454,1820.0,1819.6,5.49569]
[1743269256607,5.4942,1820.1,1819.7,5.4954]
[1743269256807,5.49395,1820.2,1819.8,5.49495]
[1743269257103,5.49401,1820.2,1819.8,5.49495]
[1743269257416,11.38766,1820.3,1819.9,5.4948]
[1743269257707,5.49421,1820.1,1819.7,5.4954]
[1743269257918,5.49459,1820.0,1819.6,5.49563]
[1743269258068,5.49459,1820.0,1819.6,5.49548]
[1743269258274,5.49601,1819.5,1819.1,1.6118]
[1743269258509,5.49555,1819.7,1819.2,5.4968]
[1743269258711,5.49612,1819.5,1819.1,7.10901]
[1743269258917,5.49676,1819.3,1818.9,6.826]
[1743269259121,5.49676,1819.3,1818.3,5.49957]
[1743269259122,1.438766,1820.3,1819.0,6.88096842]
[1743269259276,0.4,1820.6,1819.8,1.6118]
[1743269259474,5.49451,1820.0,1819.6,5.49546]
[1743269259693,5.49481,1819.9,1819.5,1.6118]
[1743269259888,5.49521,1819.8,1819.5,1.6118]
[1743269260091,3.4,1820.5,1819.7,5.4954]
[1743269260311,3.4,1820.5,1819.8,0.54954]
[1743269260312,5.49361,1820.3,1819.8,0.54954]
[1743269260523,5.49412,1820.2,1819.7,5.4954]
[1743269260733,5.49431,1820.1,1819.7,5.49525]
[1743269260915,5.49461,1820.0,1819.6,5.49559]
[1743269261110,5.49461,1820.0,1819.5,12.38488]
[1743269261330,5.49491,1819.9,1819.5,5.49588]
[1743269261497,5.49572,1819.6,1819.3,5.49657]
[1743269261697,5.49549,1819.7,1819.3,5.49657]
[1743269261902,5.49549,1819.7,1819.3,5.49645]
[1743269262123,5.49561,1819.7,1819.3,5.49645]
[1743269262326,5.49537,1819.8,1819.4,1.09624504]
[1743269262527,5.49555,1819.7,1819.4,1.09624504]
[1743269262741,3.4,1820.3,1819.6,5.49544]
[1743269262898,5.49438,1820.1,1819.7,5.49539]
[1743269263095,5.49363,1820.3,1819.9,5.49465]
[1743269263433,0.4,1820.6,1820.3,5.49357]
[1743269263602,5.49283,1820.6,1820.2,5.49388]
[1743269263802,10.98581,1820.6,1820.2,5.49388]
[1743269264331,5.49283,1820.6,1820.2,5.49388]
[1743269264536,5.49242,1820.7,1820.2,1.04250083]
[1743269264741,5.49215,1820.8,1820.4,5.49329]
[1743269264944,5.49182,1820.9,1820.5,10.98559]
[1743269265237,10.98263,1821.1,1820.7,5.49236]
[1743269265742,5.49092,1821.2,1820.8,5.49193]
[1743269266040,0.76687061,1821.7,1820.6,1.6118]
[1743269266041,5.49182,1820.9,1820.6,1.6118]
[1743269266257,5.4915,1821.0,1820.6,7.10438]
[1743269266601,1.098271,1821.0,1820.4,6.869]
[1743269266812,5.49256,1820.7,1820.3,13.72335744]
[1743269267013,5.49291,1820.6,1820.3,2.73646744]
[1743269267412,5.49303,1820.5,1820.2,5.4937]
[1743269267616,5.49288,1820.6,1820.2,5.4937]
[1743269267951,5.49288,1820.6,1820.2,10.98741]
[1743269268130,5.49263,1820.7,1820.3,5.49348]
[1743269268304,10.98523,1820.7,1820.3,5.49348]
[1743269268506,5.49208,1820.9,1820.4,5.49307]
[1743269268929,5.49203,1820.9,1820.5,5.49288]
[1743269269216,5.49264,1820.7,1820.2,6.86389954]
[1743269269403,10.98578,1820.6,1820.2,5.49366]
[1743269269606,5.49308,1820.5,1820.2,5.49366]
[1743269269837,5.49308,1820.5,1820.1,8.2090254]
[1743269270041,10.98576,1820.6,1820.1,7.10584]
[1743269270204,10.98575,1820.6,1820.2,5.49376]
[1743269270404,6.041013,1820.9,1820.1,1.6118]
[1743269270405,5.49239,1820.7,1820.1,1.6118]
[1743269270631,5.49239,1820.7,1820.3,5.49343]
[1743269271238,5.49162,1821.0,1820.6,5.49263]
[1743269271474,0.55,1821.1,1820.4,5.49313]
[1743269271645,5.49269,1820.6,1820.3,5.49349]
[1743269272007,5.49219,1820.8,1820.3,5.4934]
[1743269272207,5.492,1820.9,1820.5,10.98583]
[1743269272549,5.492,1820.9,1820.6,5.49268]
[1743269272550,5.4919,1820.9,1820.6,5.49268]
[1743269272717,5.49166,1821.0,1820.6,5.49268]
[1743269273037,10.98343,1821.0,1820.6,5.49251]
[1743269273241,5.49182,1820.9,1820.5,10.98578]
[1743269273445,6.04123,1821.1,1820.7,5.49224]
[1743269273743,5.49183,1820.9,1820.6,7.00569]
[1743269274043,5.49151,1821.0,1820.7,5.4922]
[1743269274247,0.55,1821.1,1820.9,5.49178]
[1743269274535,0.55,1821.1,1821.0,5.49148]
[1743269274762,0.55,1821.1,1821.0,8.102906]
[1743269275037,0.55,1821.1,1821.0,10.923406]
[1743269275461,10.97662,1822.1,1821.7,5.4892]
[1743269275646,5.4882,1822.1,1821.7,5.48924]
[1743269275821,10.97665,1822.1,1821.7,5.48924]
[1743269276164,5.4882,1822.1,1821.7,5.48918]
[1743269276344,5.4882,1822.1,1821.7,11.03325788]
[1743269276543,10.97598,1822.2,1821.8,5.48906]
[1743269276739,5.48744,1822.4,1821.9,1.5131]
[1743269276939,5.48845,1822.1,1821.6,7.00269]
[1743269277118,0.9498,1822.3,1821.6,1.5131]
[1743269277329,5.48828,1822.1,1821.7,5.48926]
[1743269277548,12.3119,1822.6,1821.8,0.05488666]
[1743269277732,13.63807,1822.6,1821.8,0.05488666]
[1743269277937,5.48763,1822.3,1821.9,5.48872]
[1743269278252,5.4873,1822.4,1822.0,5.4882]
[1743269278556,5.4874,1822.4,1822.0,5.543071]
[1743269278851,10.9742,1822.5,1822.1,5.48803]
[1743269279053,5.48787,1822.2,1822.0,0.054881]
[1743269279350,5.48727,1822.4,1822.0,5.48845]
[1743269279552,5.48711,1822.5,1822.1,5.48812]
[1743269279739,5.48733,1822.4,1822.1,5.48812]
[1743269280052,5.4877,1822.3,1821.9,5.48865]
[1743269280231,5.4877,1822.3,1821.9,5.54352705]
[1743269280428,3.0,1822.5,1821.9,0.05487705]
[1743269280633,5.48845,1822.1,1821.8,6.822]
[1743269281253,0.9498,1822.0,1821.5,1.08971854]
[1743269281462,0.9498,1822.0,1821.1,1.5131]
[1743269281463,5.49014,1821.5,1821.1,1.4518]
[1743269281657,5.4904,1821.4,1821.1,1.4518]
[1743269281833,3.0,1821.9,1821.2,5.49083]
[1743269281834,5.48996,1821.6,1821.2,5.49083]
[1743269282025,10.98019,1821.5,1821.1,6.94283]
[1743269282221,5.49,1821.5,1821.1,6.94279]
[1743269282430,0.57506099,1822.6,1821.2,7.542279]
[1743269282630,0.28740635,1822.2,1822.1,5.48817]
[1743269282851,5.48609,1822.8,1822.3,5.4873]
[1743269283176,1.0111,1822.9,1822.1,0.05487205]
[1743269283379,1.0111,1822.3,1821.2,0.694279]
[1743269283582,5.48953,1821.7,1821.3,5.49041]
[1743269283799,1.0111,1821.8,1821.2,5.49076]
[1743269284085,5.48887,1821.9,1821.6,5.48956]
[1743269284239,5.48978,1821.6,1821.2,5.49072]
[1743269284440,5.49077,1821.3,1820.9,13.96194]
[1743269284764,5.49016,1821.5,1821.1,5.49095]
[1743269284962,5.49016,1821.5,1821.1,10.87119]
[1743269285164,1.0111,1822.5,1821.9,1.5913]
[1743269285358,5.48818,1822.1,1821.8,5.48903]
[1743269285557,5.48879,1821.9,1821.6,1.5913]
[1743269285767,5.48879,1821.9,1821.5,5.48984]
[1743269285979,10.97776,1821.9,1821.5,5.48975]
[1743269286279,5.48879,1821.9,1821.4,5.49011]
[1743269286444,5.48949,1821.7,1821.3,7.08188]
[1743269286645,5.48968,1821.6,1821.3,7.0817]
[1743269286860,5.4901,1821.5,1821.1,5.49113]
[1743269287175,5.48981,1821.6,1821.2,5.49084]
[1743269287474,5.49008,1821.5,1821.1,5.49117]
[1743269287677,10.98029,1821.5,1821.1,5.49117]
[1743269287840,5.49105,1821.2,1820.8,12.412]
[1743269288042,5.49105,1821.2,1820.9,5.49168]